fUSD/lending_fUSD_20250313
["ID","MTS","AMOUNT","RATE_DAILY","PERIOD"]
[356067662,1741877530563,-500.0,0.00028452,18]
[356067663,1741877530573,-500.0,0.00028452,18]
[356067664,1741877530582,-500.0,0.00028452,18]
[356067665,1741877530591,-501.75549255,0.00028452,18]
[356067666,1741877530601,-500.0,0.00028452,18]
[356067667,1741877530610,-504.73063991,0.00028452,18]
[356067668,1741877530619,-500.0,0.00028452,18]
[356067669,1741877530629,-459.57839696,0.00028452,18]
[356067670,1741877530639,-506.40377175,0.00028452,18]
[356067671,1741877530648,-513.4985398,0.00028452,18]
[356067672,1741877530658,-500.0,0.00028452,18]
[356067673,1741877530667,-500.0,0.00028452,18]
[356067674,1741877530677,-500.0,0.00028452,18]
[356067675,1741877530687,-500.0,0.00028452,18]
[356067676,1741877530696,-504.50042163,0.00028452,18]
[356067677,1741877530705,-501.81710648,0.00028452,18]
[356067678,1741877530715,-500.0,0.00028452,18]
[356067679,1741877530725,-500.0,0.00028452,18]
[356067680,1741877530735,-500.0,0.00028452,18]
[356067681,1741877530744,-502.82201967,0.00028452,18]
[356067682,1741877530753,-514.2198397,0.00028452,18]
[356067683,1741877530763,-500.0,0.00028452,18]
[356067684,1741877530772,-500.0,0.00028452,18]
[356067685,1741877530781,-500.0,0.00028452,18]
[356067686,1741877530792,-236.24199205,0.00028452,18]
[356067687,1741877530814,-282.38794275,0.00028452,18]
[356067688,1741877530823,-171.03516531,0.00028452,18]
[356067689,1741877530836,-328.96483469,0.00028452,18]
[356067690,1741877530849,-500.0,0.00028452,18]
[356067691,1741877530859,-502.34,0.00028452,18]
[356067692,1741877530869,-502.34,0.00028452,18]
[356067693,1741877530879,-500.0,0.00028452,18]
[356067694,1741877530889,-500.0,0.00028452,18]
[356067695,1741877530899,-500.0,0.00028452,18]
[356067696,1741877530908,-500.0,0.00028452,18]
[356067697,1741877530918,-500.0,0.00028452,18]
[356067698,1741877530928,-500.0,0.00028452,18]
[356067699,1741877530939,-500.0,0.00028452,18]
[356067700,1741877530949,-500.0,0.00028452,18]
[356067701,1741877530958,-502.09334144,0.00028452,18]
[356067702,1741877530967,-500.0,0.00028452,18]
[356067703,1741877530977,-385.26430759,0.00028452,18]
[356067704,1741877530986,-500.0,0.00028452,18]
[356067705,1741877530997,-500.0,0.00028452,18]
[356067706,1741877531007,-500.0,0.00028452,18]
[356067707,1741877531098,-500.0,0.00028452,18]
[356067708,1741877531108,-283.5690454,0.00028452,18]
[356067709,1741877531117,-611.59076609,0.00028452,18]
[356067710,1741877531127,-246.53142606,0.00028452,18]
[356067711,1741877531137,-810.74,0.00028452,18]
[356067712,1741877531147,-810.74,0.00028452,18]
[356067713,1741877531157,-810.74,0.00028452,18]
[356067714,1741877531167,-500.0,0.00028452,18]
[356067715,1741877531176,-500.0,0.00028452,18]
[356067716,1741877531185,-500.0,0.00028452,18]
[356067717,1741877531195,-500.0,0.00028452,18]
[356067718,1741877531204,-500.0,0.00028452,18]
[356067719,1741877531214,-561.76,0.00028452,18]
[356067720,1741877531224,-561.76,0.00028452,18]
[356067721,1741877531233,-561.76,0.00028452,18]
[356067722,1741877531243,-640.13,0.00028452,18]
[356067723,1741877531253,-640.13,0.00028452,18]
[356067724,1741877531262,-500.0,0.00028452,18]
[356067725,1741877531271,-500.0,0.00028452,18]
[356067726,1741877531281,-500.0,0.00028452,18]
[356067727,1741877531291,-500.0,0.00028452,18]
[356067728,1741877531303,-523.76,0.00028452,18]
[356067729,1741877531316,-140.22628248,0.00028452,18]
[356067730,1741878588042,-10000.0,0.00023958,2]
[356067731,1741878590176,-10000.0,0.00023958,2]
[356067732,1741878591131,-9422.48945119,0.00023958,2]
[356067733,1741878591153,-250.0,0.00027146,2]
[356067734,1741878591176,-327.51054881,0.00027177,2]
[356067735,1741878606508,-741.78,0.00025241,2]
[356067736,1741878606533,-672.48945119,0.00027177,2]
[356067737,1741878606558,-150.0,0.00027259,2]
[356067738,1741878606582,-156.57,0.00027344,30]
[356067739,1741878606606,-150.0,0.00027414,2]
[356067740,1741878606631,-162.05,0.00027427,2]
[356067741,1741878606655,-200.0,0.0002743,2]
[356067742,1741878606680,-400.0,0.000275,10]
[356067743,1741878606706,-741.78,0.00027505,2]
[356067744,1741878606731,-162.05,0.0002758,2]
[356067745,1741878606753,-800.0,0.000276,10]
[356067746,1741878606776,-1300.0,0.000277,10]
[356067747,1741878606801,-162.05,0.00027732,2]
[356067748,1741878606825,-1700.0,0.000278,10]
[356067749,1741878606847,-1123.0,0.00027848,2]
[356067750,1741878606869,-168.1018418,0.00027883,4]
[356067751,1741878606894,-162.05,0.00027885,2]
[356067752,1741878606918,-1048.07870701,0.000279,10]
[356067753,1741878609229,-1051.92129299,0.000279,10]
[356067754,1741878609253,-201.89690782,0.000279,4]
[356067755,1741878609279,-171.59,0.00027943,2]
[356067756,1741878609312,-300.0,0.00028036,2]
[356067757,1741878609336,-162.05,0.00028037,2]
[356067758,1741878609358,-1123.0,0.00028135,2]
[356067759,1741878609381,-2224.28602474,0.0002817,2]
[356067760,1741878609404,-162.05,0.00028189,2]
[356067761,1741878609426,-1344.5454,0.00028212,2]
[356067762,1741878609448,-571.29790002,0.00028309,15]
[356067763,1741878609471,-150.0,0.00028309,2]
[356067764,1741878609492,-1697.3848122,0.00028311,2]
[356067765,1741878609514,-839.97766223,0.00028311,2]
[356067766,1741878610677,-1604.03443777,0.00028311,2]
[356067767,1741878610702,-703.5149,0.00028311,2]
[356067768,1741878610725,-366.741,0.00028312,2]
[356067769,1741878610748,-296.7691,0.00028312,2]
[356067770,1741878610773,-162.05,0.00028342,2]
[356067771,1741878610796,-153.35744088,0.00028351,2]
[356067772,1741878610820,-1322.76,0.00028352,19]
[356067773,1741878610842,-5390.77312135,0.00028393,2]
[356067774,1741878614762,-1535.23730169,0.00028393,2]
[356067775,1741878614794,-8464.76269831,0.00028401,3]
[356067776,1741878615475,-10000.0,0.00028401,3]
[356067777,1741878616295,-164.86019249,0.00028401,3]
[356067778,1741878616321,-9835.13980751,0.00028401,3]
[356067779,1741878617481,-728.5655,0.00028309,2]
[356067780,1741878617503,-9271.4345,0.00028401,3]
[356067781,1741878625490,-679.2531,0.00028309,2]
[356067782,1741878625517,-1113.7469,0.00028401,3]
[356067783,1741878632075,-197.31,0.00025,2]
[356067784,1741878632085,-115.18619502,0.00028401,3]
[356067785,1741878632130,-16923.73837897,0.00028401,3]
[356067786,1741878632141,-39211.76984869,0.00028402,3]
[356067787,1741878632180,-5854.90907184,0.00028402,3]
[356067788,1741878632340,-1342.02960698,0.00028402,3]
[356067789,1741878632353,-250.7505,0.00028402,3]
[356067790,1741878632412,-17588.20207467,0.00028402,3]
[356067821,1741878638121,-435.0246704,0.00028401,2]
[356067822,1741878638131,-500.0,0.00028401,18]
[356067823,1741878638142,-62.44205202,0.00028402,3]
[356067824,1741878638155,-16704.38076902,0.00028402,3]
[356067825,1741878638168,-418.425,0.00028402,3]
[356067826,1741878638187,-624.5,0.00028402,3]
[356067827,1741878638367,-1268.98,0.00028402,3]
[356067828,1741878638379,-47080.97131178,0.00028402,3]
[356067829,1741878638389,-12833.6488581,0.00028402,3]
[356067830,1741878638400,-500.0,0.00028402,18]
[356067831,1741878638409,-10554.66922795,0.00028402,3]
[356067834,1741878640405,-500.0,0.00028401,18]
[356067835,1741878640416,-500.0,0.00028402,18]
[356067836,1741878640427,-119852.69100705,0.00028402,3]
[356067837,1741878640437,-46201.1358892,0.00028402,3]
[356067838,1741878640447,-151.51,0.00028402,2]
[356067839,1741878640458,-37259.2457815,0.00028402,3]
[356067840,1741878640468,-7700.18931486,0.00028402,3]
[356067841,1741878640478,-18629.6228908,0.00028403,3]
[356067842,1741878640488,-7700.18931486,0.00028403,3]
[356067843,1741878640498,-55888.8686722,0.00028403,3]
[356067844,1741878640508,-20533.838173,0.00028403,3]
[356067845,1741878640519,-5133.45954324,0.00028403,3]
[356067846,1741878640529,-944.92,0.00028409,18]
[356067847,1741878640539,-500.0,0.00028409,18]
[356067848,1741878640548,-500.0,0.00028409,18]
[356067849,1741878640558,-500.0,0.00028409,18]
[356067850,1741878640569,-500.0,0.00028409,18]
[356067851,1741878640579,-500.0,0.00028409,18]
[356067852,1741878640590,-558.48,0.00028409,18]
[356067853,1741878640600,-500.0,0.00028409,18]
[356067854,1741878640610,-500.0,0.00028409,18]
[356067855,1741878640619,-500.0,0.00028409,18]
[356067856,1741878640629,-500.0,0.00028409,18]
[356067857,1741878640639,-500.0,0.00028409,18]
[356067858,1741878640649,-258.93680497,0.00028409,18]
[356067859,1741878640658,-500.0,0.00028409,18]
[356067860,1741878640668,-500.0,0.00028409,18]
[356067861,1741878640678,-684.22,0.00028409,18]
[356067862,1741878640688,-500.0,0.00028409,18]
[356067863,1741878640699,-500.0,0.00028409,18]
[356067864,1741878640709,-944.92,0.00028411,18]
[356067865,1741878640719,-944.92,0.00028411,18]
[356067866,1741878640729,-500.0,0.00028411,18]
[356067867,1741878640738,-500.0,0.00028411,18]
[356067868,1741878640748,-500.0,0.00028411,18]
[356067870,1741878640758,-500.0,0.00028411,18]
[356067871,1741878640768,-500.0,0.00028411,18]
[356067872,1741878640778,-500.0,0.00028411,18]
[356067873,1741878640789,-500.0,0.00028411,18]
[356067874,1741878640799,-500.0,0.00028411,18]
[356067875,1741878640809,-500.0,0.00028411,18]
[356067876,1741878640819,-500.0,0.00028411,18]
[356067877,1741878640829,-558.48,0.00028411,18]
[356067878,1741878640840,-558.48,0.00028411,18]
[356067879,1741878640850,-500.0,0.00028411,18]
[356067880,1741878640860,-500.0,0.00028411,18]
[356067881,1741878640870,-500.0,0.00028411,18]
[356067882,1741878640880,-500.0,0.00028411,18]
[356067883,1741878640890,-500.0,0.00028411,18]
[356067884,1741878640900,-500.0,0.00028411,18]
[356067885,1741878640910,-500.0,0.00028411,18]
[356067886,1741878640920,-500.0,0.00028411,18]
[356067887,1741878640930,-500.0,0.00028411,18]
[356067888,1741878640940,-500.0,0.00028411,18]
[356067889,1741878640951,-500.0,0.00028411,18]
[356067890,1741878640961,-500.0,0.00028411,18]
[356067891,1741878640971,-500.0,0.00028411,18]
[356067892,1741878640982,-500.0,0.00028411,18]
[356067893,1741878640992,-684.22,0.00028411,18]
[356067894,1741878641002,-684.22,0.00028411,18]
[356067895,1741878641012,-500.0,0.00028411,18]
[356067896,1741878641023,-500.0,0.00028411,18]
[356067897,1741878641034,-500.0,0.00028411,18]
[356067898,1741878641044,-500.0,0.00028411,18]
[356067899,1741878641054,-500.0,0.00028411,18]
[356067900,1741878641064,-500.0,0.00028412,18]
[356067901,1741878641074,-500.0,0.00028412,18]
[356067902,1741878641085,-500.0,0.00028412,18]
[356067903,1741878641096,-500.0,0.00028412,18]
[356067904,1741878641107,-500.0,0.00028412,18]
[356067905,1741878641117,-500.0,0.00028412,18]
[356067906,1741878641127,-500.0,0.00028412,18]
[356067907,1741878641137,-500.0,0.00028412,18]
[356067908,1741878641148,-500.0,0.00028412,18]
[356067909,1741878641158,-500.0,0.00028412,18]
[356067910,1741878641168,-500.0,0.00028412,18]
[356067911,1741878641179,-500.0,0.00028412,18]
[356067912,1741878641189,-500.0,0.00028412,18]
[356067913,1741878641200,-500.0,0.00028412,18]
[356067914,1741878641211,-500.0,0.00028412,18]
[356067915,1741878641222,-500.0,0.00028412,18]
[356067916,1741878641232,-500.0,0.00028412,18]
[356067917,1741878641243,-500.0,0.00028412,18]
[356067918,1741878641256,-500.0,0.00028412,18]
[356067919,1741878641271,-500.0,0.00028412,18]
[356067920,1741878641286,-500.0,0.00028412,18]
[356067921,1741878641298,-500.0,0.00028412,18]
[356067922,1741878641310,-480.86888221,0.00028412,18]
[356067923,1741878641322,-319.2539995,0.00028412,18]
[356067924,1741878641333,-500.0,0.00028412,18]
[356067925,1741878641345,-596.02,0.00028412,18]
[356067926,1741878641357,-500.0,0.00028412,18]
[356067927,1741878641368,-500.0,0.00028412,18]
[356067928,1741878641380,-500.0,0.00028412,18]
[356067929,1741878641391,-500.0,0.00028412,18]
[356067930,1741878641403,-500.0,0.00028412,18]
[356067931,1741878641414,-500.0,0.00028412,18]
[356067932,1741878641425,-500.0,0.00028412,18]
[356067933,1741878641436,-500.0,0.00028412,18]
[356067934,1741878641447,-500.0,0.00028412,18]
[356067935,1741878641459,-500.0,0.00028412,18]
[356067936,1741878641470,-500.0,0.00028412,18]
[356067937,1741878641481,-546.22241059,0.00028412,18]
[356067938,1741878641491,-500.0,0.00028412,18]
[356067939,1741878641502,-500.0,0.00028412,18]
[356067940,1741878641513,-500.0,0.00028412,18]
[356067941,1741878641524,-500.0,0.00028412,18]
[356067942,1741878641534,-500.0,0.00028412,18]
[356067943,1741878641545,-336.92934856,0.00028412,18]
[356067944,1741878641557,-503.63253972,0.00028412,18]
[356067945,1741878641569,-500.0,0.00028412,18]
[356067946,1741878641580,-500.0,0.00028412,18]
[356067947,1741878641592,-500.0,0.00028412,18]
[356067948,1741878641602,-500.0,0.00028412,18]
[356067949,1741878641612,-500.0,0.00028412,18]
[356067950,1741878641623,-361.90028479,0.00028412,18]
[356067951,1741878641634,-500.0,0.00028412,18]
[356067952,1741878641645,-500.0,0.00028412,18]
[356067953,1741878641656,-500.0,0.00028412,18]
[356067954,1741878641666,-500.0,0.00028412,18]
[356067955,1741878641677,-500.0,0.00028412,18]
[356067956,1741878641688,-300.0,0.00028412,18]
[356067957,1741878641698,-500.0,0.00028412,18]
[356067958,1741878641710,-500.0,0.00028412,18]
[356067959,1741878641720,-500.0,0.00028412,18]
[356067960,1741878641731,-500.0,0.00028412,18]
[356067961,1741878641743,-500.0,0.00028412,18]
[356067962,1741878641754,-500.0,0.00028412,18]
[356067963,1741878641765,-535.43,0.00028412,18]
[356067964,1741878641775,-500.0,0.00028412,18]
[356067965,1741878641785,-500.0,0.00028412,18]
[356067966,1741878641795,-500.0,0.00028412,18]
[356067967,1741878641806,-500.0,0.00028412,18]
[356067968,1741878641816,-887.11,0.00028412,18]
[356067969,1741878641826,-500.0,0.00028412,18]
[356067970,1741878641839,-500.0,0.00028412,18]
[356067971,1741878641849,-500.0,0.00028412,18]
[356067972,1741878641860,-500.0,0.00028412,18]
[356067973,1741878641871,-500.0,0.00028412,18]
[356067974,1741878641881,-500.0,0.00028412,18]
[356067975,1741878641896,-500.0,0.00028412,18]
[356067976,1741878641906,-500.0,0.00028412,18]
[356067977,1741878641917,-500.0,0.00028412,18]
[356067978,1741878641927,-500.0,0.00028412,18]
[356067979,1741878641937,-505.97304978,0.00028412,18]
[356067980,1741878641947,-500.0,0.00028412,18]
[356067981,1741878641958,-500.0,0.00028412,18]
[356067982,1741878641968,-500.0,0.00028412,18]
[356067983,1741878641979,-500.0,0.00028412,18]
[356067984,1741878641989,-500.0,0.00028412,18]
[356067985,1741878642000,-338.82016907,0.00028412,18]
[356067986,1741878642011,-500.0,0.00028412,18]
[356067987,1741878642021,-500.0,0.00028412,18]
[356067988,1741878642031,-500.0,0.00028412,18]
[356067989,1741878642042,-500.0,0.00028412,18]
[356067990,1741878642053,-500.0,0.00028412,18]
[356067991,1741878642063,-500.0,0.00028412,18]
[356067992,1741878642074,-500.0,0.00028412,18]
[356067993,1741878642085,-500.0,0.00028412,18]
[356067994,1741878642096,-500.0,0.00028412,18]
[356067995,1741878642106,-500.0,0.00028412,18]
[356067996,1741878642117,-500.0,0.00028412,18]
[356067997,1741878642127,-500.0,0.00028412,18]
[356067998,1741878642138,-216.44382632,0.00028412,18]
[356067999,1741878642148,-500.0,0.00028412,18]
[356068000,1741878642158,-500.0,0.00028412,18]
[356068001,1741878642169,-500.0,0.00028412,18]
[356068002,1741878642180,-500.0,0.00028412,18]
[356068003,1741878642190,-326.32754952,0.00028412,18]
[356068004,1741878642202,-500.0,0.00028412,18]
[356068005,1741878642217,-632.48476058,0.00028412,18]
[356068006,1741878642227,-500.0,0.00028412,18]
[356068007,1741878642237,-500.0,0.00028412,18]
[356068008,1741878642247,-500.0,0.00028412,18]
[356068009,1741878642257,-500.0,0.00028412,18]
[356068010,1741878642267,-500.0,0.00028412,18]
[356068011,1741878642277,-500.0,0.00028412,18]
[356068012,1741878642289,-500.0,0.00028412,18]
[356068013,1741878642300,-500.0,0.00028412,18]
[356068014,1741878642311,-500.0,0.00028412,18]
[356068015,1741878642321,-500.0,0.00028412,18]
[356068016,1741878642333,-494.56980677,0.00028412,18]
[356068017,1741878642344,-500.0,0.00028412,18]
[356068018,1741878642354,-500.0,0.00028412,18]
[356068019,1741878642365,-500.0,0.00028412,18]
[356068020,1741878642377,-500.0,0.00028412,18]
[356068021,1741878642387,-500.0,0.00028412,18]
[356068022,1741878642398,-500.0,0.00028412,18]
[356068023,1741878642408,-500.0,0.00028412,18]
[356068024,1741878642419,-500.0,0.00028412,18]
[356068025,1741878642429,-500.0,0.00028412,18]
[356068026,1741878642440,-500.0,0.00028412,18]
[356068027,1741878642451,-500.0,0.00028412,18]
[356068028,1741878642462,-500.0,0.00028412,18]
[356068029,1741878642473,-500.0,0.00028412,18]
[356068030,1741878642483,-500.0,0.00028412,18]
[356068031,1741878642494,-504.98550222,0.00028412,18]
[356068032,1741878642504,-500.0,0.00028412,18]
[356068033,1741878642515,-500.0,0.00028412,18]
[356068036,1741878642957,-500.0,0.00028412,18]
[356068037,1741878642978,-500.0,0.00028412,18]
[356068038,1741878642994,-500.0,0.00028412,18]
[356068039,1741878643003,-500.0,0.00028412,18]
[356068041,1741878643013,-500.0,0.00028412,18]
[356068043,1741878643023,-500.0,0.00028412,18]
[356068046,1741878643032,-500.0,0.00028412,18]
[356068048,1741878643041,-500.0,0.00028412,18]
[356068050,1741878643051,-500.0,0.00028412,18]
[356068052,1741878643060,-500.0,0.00028412,18]
[356068054,1741878643069,-500.0,0.00028412,18]
[356068056,1741878643079,-500.0,0.00028412,18]
[356068058,1741878643091,-500.0,0.00028412,18]
[356068060,1741878643101,-500.0,0.00028412,18]
[356068062,1741878643110,-500.0,0.00028412,18]
[356068064,1741878643120,-550.36356589,0.00028412,18]
[356068066,1741878643129,-500.0,0.00028412,18]
[356068068,1741878643139,-503.52486405,0.00028412,18]
[356068070,1741878643148,-500.0,0.00028412,18]
[356068072,1741878643158,-500.0,0.00028412,18]
[356068073,1741878643167,-500.0,0.00028412,18]
[356068074,1741878643177,-500.0,0.00028412,18]
[356068075,1741878643186,-500.0,0.00028412,18]
[356068076,1741878643195,-1076.26,0.00028412,18]
[356068077,1741878643207,-500.0,0.00028412,18]
[356068078,1741878643216,-500.0,0.00028412,18]
[356068079,1741878643226,-500.0,0.00028412,18]
[356068080,1741878643235,-500.58209525,0.00028412,18]
[356068081,1741878643247,-500.0,0.00028412,18]
[356068082,1741878643256,-500.0,0.00028412,18]
[356068083,1741878643266,-500.0,0.00028412,18]
[356068084,1741878643276,-500.0,0.00028412,18]
[356068085,1741878643285,-500.0,0.00028412,18]
[356068086,1741878643296,-500.0,0.00028412,18]
[356068087,1741878643305,-225.42379681,0.00028412,18]
[356068092,1741878643801,-274.57620319,0.00028412,18]
[356068093,1741878643812,-500.0,0.00028412,18]
[356068094,1741878643822,-502.5055757,0.00028412,18]
[356068095,1741878643835,-500.0,0.00028412,18]
[356068096,1741878643844,-500.0,0.00028412,18]
[356068097,1741878643854,-500.0,0.00028412,18]
[356068098,1741878643863,-500.0,0.00028412,18]
[356068099,1741878643873,-500.0,0.00028412,18]
[356068100,1741878643883,-500.0,0.00028412,18]
[356068101,1741878643893,-500.0,0.00028412,18]
[356068102,1741878643903,-500.0,0.00028412,18]
[356068103,1741878643913,-500.0,0.00028412,18]
[356068104,1741878643923,-500.0,0.00028412,18]
[356068105,1741878643933,-500.0,0.00028412,18]
[356068106,1741878643943,-500.0,0.00028412,18]
[356068107,1741878643953,-48.5423969,0.00028412,18]
[356068108,1741878643966,-451.4576031,0.00028412,18]
[356068109,1741878643975,-500.0,0.00028412,18]
[356068110,1741878643985,-500.0,0.00028412,18]
[356068111,1741878643995,-500.0,0.00028412,18]
[356068112,1741878644005,-500.0,0.00028412,18]
[356068113,1741878644014,-500.0,0.00028412,18]
[356068114,1741878644024,-500.0,0.00028412,18]
[356068115,1741878644033,-500.0,0.00028412,18]
[356068116,1741878644043,-500.0,0.00028412,18]
[356068117,1741878644053,-500.0,0.00028412,18]
[356068118,1741878644062,-500.0,0.00028412,18]
[356068119,1741878644071,-500.0,0.00028412,18]
[356068120,1741878644082,-500.0,0.00028412,18]
[356068121,1741878644092,-500.0,0.00028412,18]
[356068122,1741878644101,-500.0,0.00028412,18]
[356068123,1741878644111,-516.61,0.00028412,18]
[356068124,1741878644121,-500.0,0.00028412,18]
[356068125,1741878644130,-500.0,0.00028412,18]
[356068126,1741878644140,-500.0,0.00028412,18]
[356068127,1741878644150,-500.0,0.00028412,18]
[356068128,1741878644159,-220.70227334,0.00028412,18]
[356068129,1741878644209,-500.0,0.00028411,18]
[356068130,1741878644219,-279.29772666,0.00028412,18]
[356068131,1741878644230,-342.62540629,0.00028412,18]
[356068132,1741878644242,-157.37459371,0.00028412,18]
[356068133,1741878644254,-451.7543021,0.00028412,18]
[356068134,1741878644267,-48.2456979,0.00028412,18]
[356068135,1741878644276,-500.0,0.00028412,18]
[356068136,1741878644287,-500.0,0.00028412,18]
[356068137,1741878644298,-500.0,0.00028412,18]
[356068138,1741878644309,-500.0,0.00028412,18]
[356068139,1741878644319,-500.0,0.00028412,18]
[356068140,1741878644329,-500.0,0.00028412,18]
[356068141,1741878644341,-500.0,0.00028412,18]
[356068142,1741878644350,-500.0,0.00028412,18]
[356068143,1741878644360,-500.0,0.00028412,18]
[356068144,1741878644370,-500.0,0.00028412,18]
[356068145,1741878644380,-500.0,0.00028412,18]
[356068146,1741878644390,-500.0,0.00028412,18]
[356068147,1741878644399,-500.0,0.00028412,18]
[356068148,1741878644409,-500.0,0.00028412,18]
[356068149,1741878644418,-500.0,0.00028412,18]
[356068150,1741878644428,-500.0,0.00028412,18]
[356068151,1741878644438,-510.21,0.00028412,18]
[356068152,1741878644448,-1671.62,0.00028412,18]
[356068153,1741878644457,-319.36234901,0.00028412,18]
[356068154,1741878644466,-500.0,0.00028412,18]
[356068155,1741878644476,-597.67354566,0.00028412,18]
[356068156,1741878644486,-500.0,0.00028412,18]
[356068157,1741878644495,-500.0,0.00028412,18]
[356068158,1741878644505,-500.0,0.00028412,18]
[356068159,1741878644515,-255.91116542,0.00028412,18]
[356068160,1741878644524,-500.0,0.00028412,18]
[356068161,1741878644534,-500.0,0.00028412,18]
[356068162,1741878644543,-500.0,0.00028412,18]
[356068163,1741878644554,-500.0,0.00028412,18]
[356068164,1741878644564,-500.0,0.00028412,18]
[356068165,1741878644573,-500.0,0.00028412,18]
[356068166,1741878644585,-500.0,0.00028412,18]
[356068167,1741878644594,-500.0,0.00028412,18]
[356068168,1741878644604,-500.0,0.00028412,18]
[356068169,1741878644614,-500.0,0.00028412,18]
[356068170,1741878644623,-500.0,0.00028412,18]
[356068171,1741878644633,-500.0,0.00028412,18]
[356068172,1741878644644,-500.0,0.00028412,18]
[356068173,1741878644653,-500.0,0.00028412,18]
[356068174,1741878644663,-630.29,0.00028412,18]
[356068175,1741878644672,-500.0,0.00028412,18]
[356068176,1741878644682,-500.0,0.00028412,18]
[356068177,1741878644691,-622.09374059,0.00028412,18]
[356068178,1741878644702,-500.0,0.00028412,18]
[356068179,1741878644711,-500.0,0.00028412,18]
[356068180,1741878644721,-500.0,0.00028412,18]
[356068181,1741878644730,-500.0,0.00028412,18]
[356068182,1741878644740,-500.0,0.00028412,18]
[356068183,1741878644749,-500.0,0.00028412,18]
[356068184,1741878644759,-500.0,0.00028412,18]
[356068185,1741878644768,-544.8,0.00028412,18]
[356068186,1741878644777,-500.0,0.00028412,18]
[356068187,1741878644787,-500.0,0.00028412,18]
[356068188,1741878644796,-500.0,0.00028412,18]
[356068189,1741878644806,-500.0,0.00028412,18]
[356068190,1741878644816,-500.0,0.00028412,18]
[356068191,1741878644825,-500.0,0.00028412,18]
[356068192,1741878644835,-500.0,0.00028412,18]
[356068193,1741878644844,-500.0,0.00028412,18]
[356068194,1741878644854,-500.0,0.00028412,18]
[356068195,1741878644864,-500.0,0.00028412,18]
[356068196,1741878644873,-500.0,0.00028412,18]
[356068197,1741878644883,-512.51137634,0.00028412,18]
[356068198,1741878644892,-500.0,0.00028412,18]
[356068199,1741878644902,-500.0,0.00028412,18]
[356068200,1741878644912,-619.89,0.00028412,18]
[356068201,1741878644922,-508.99,0.00028412,18]
[356068202,1741878644931,-500.0,0.00028412,18]
[356068203,1741878644941,-500.0,0.00028412,18]
[356068204,1741878644951,-500.0,0.00028412,18]
[356068205,1741878644961,-500.0,0.00028412,18]
[356068206,1741878644972,-814.03,0.00028412,18]
[356068207,1741878644981,-500.0,0.00028412,18]
[356068208,1741878644990,-814.03,0.00028412,18]
[356068209,1741878645000,-500.0,0.00028412,18]
[356068210,1741878645009,-500.0,0.00028412,18]
[356068211,1741878645019,-500.0,0.00028412,18]
[356068212,1741878645028,-500.0,0.00028412,18]
[356068213,1741878645038,-500.0,0.00028412,18]
[356068214,1741878645047,-500.0,0.00028412,18]
[356068215,1741878645057,-500.0,0.00028412,18]
[356068216,1741878645067,-500.0,0.00028412,18]
[356068217,1741878645076,-500.0,0.00028412,18]